[Event "Vegagatan U1800-A"]
[Site "Goteborgs Schackcentrum, Vegatan 20, Gothenburg, Sweden"]
[Date "2025.05.03"]
[Round "3.3"]
[White "Evertsson, David"]
[Black "Murugaraja, Yogeshwer"]
[Result "0-1"]
[TimeControl "30 minutes + 30 seconds per move from move one"]
[WhiteFideId "1777424"]
[BlackFideId "1779389"]
[WhiteElo "1705"]
[BlackElo "1762"]

1. e4 {[%clk 00:30:56]} {[%emt 00:00:04]} c5 {[%clk 00:30:53]} {[%emt
00:00:07]} 2. Nf3 {[%clk 00:31:19]} {[%emt 00:00:06]} Nc6 {[%clk 00:31:10]}
{[%emt 00:00:13]} 3. d4 {[%clk 00:31:43]} {[%emt 00:00:07]} cxd4 {[%clk
00:31:36]} {[%emt 00:00:04]} 4. Nxd4 {[%clk 00:32:06]} {[%emt 00:00:07]} Nf6
{[%clk 00:31:36]} {[%emt 00:00:30]} 5. Nc3 {[%clk 00:32:01]} {[%emt 00:00:35]}
e5 {[%clk 00:32:02]} {[%emt 00:00:04]} 6. Ndb5 {[%clk 00:31:48]} {[%emt
00:00:43]} d6 {[%clk 00:32:25]} {[%emt 00:00:07]} 7. Bg5 {[%clk 00:32:08]}
{[%emt 00:00:10]} Be7 {[%clk 00:32:34]} {[%emt 00:00:21]} 8. Bxf6 {[%clk
00:31:54]} {[%emt 00:00:43]} Bxf6 {[%clk 00:32:57]} {[%emt 00:00:08]} 9. Nd5
{[%clk 00:32:18]} {[%emt 00:00:06]} O-O {[%clk 00:31:08]} {[%emt 00:02:18]} 10.
Bc4 {[%clk 00:30:18]} {[%emt 00:02:30]} a6 {[%clk 00:30:17]} {[%emt 00:01:22]}
11. Nbc7 {[%clk 00:30:41]} {[%emt 00:00:07]} Ra7 {[%clk 00:27:51]} {[%emt
00:02:55]} 12. Bb3 {[%clk 00:29:59]} {[%emt 00:01:13]} b5 {[%clk 00:27:37]}
{[%emt 00:00:43]} 13. Nxf6+ {[%clk 00:30:06]} {[%emt 00:00:23]} Qxf6 {[%clk
00:28:00]} {[%emt 00:00:07]} 14. Nd5 {[%clk 00:30:22]} {[%emt 00:00:14]} Qg6
{[%clk 00:27:52]} {[%emt 00:00:38]} 15. Qd3 {[%clk 00:23:06]} {[%emt 00:07:47]}
Qxg2 {[%clk 00:22:59]} {[%emt 00:05:23]} 16. O-O-O {[%clk 00:23:30]} {[%emt
00:00:06]} Qxf2 {[%clk 00:18:29]} {[%emt 00:04:58]} 17. Rdf1 {[%clk 00:21:47]}
{[%emt 00:02:15]} Qh4 {[%clk 00:18:01]} {[%emt 00:00:55]} 18. Rhg1 {[%clk
00:20:54]} {[%emt 00:01:26]} Kh8 {[%clk 00:17:27]} {[%emt 00:01:02]} 19. c3
{[%clk 00:15:59]} {[%emt 00:05:26]} Na5 {[%clk 00:12:32]} {[%emt 00:05:23]} 20.
Rf3 {[%clk 00:15:11]} {[%emt 00:01:20]} Nxb3+ {[%clk 00:11:31]} {[%emt
00:01:32]} 21. axb3 {[%clk 00:15:35]} {[%emt 00:00:06]} Be6 {[%clk 00:09:13]}
{[%emt 00:02:47]} 22. Rfg3 {[%clk 00:14:42]} {[%emt 00:01:24]} Bxd5 {[%clk
00:08:44]} {[%emt 00:00:59]} 23. exd5 {[%clk 00:14:49]} {[%emt 00:00:23]} Qf4+
{[%clk 00:08:07]} {[%emt 00:01:03]} 24. Kb1 {[%emt 00:01:19]} f5 {[%clk
00:05:33]} {[%emt 00:02:35]} 25. Rf1 {[%clk 00:14:18]} {[%emt 00:00:45]} e4
{[%clk 00:04:34]} {[%emt 00:01:27]} 26. Rxf4 {[%clk 00:12:12]} {[%emt
00:02:38]} exd3 {[%clk 00:05:00]} {[%emt 00:00:03]} 27. Rxd3 {[%clk 00:12:25]}
{[%emt 00:00:18]} g5 {[%clk 00:04:58]} {[%emt 00:00:31]} 28. Rf2 {[%clk
00:12:05]} {[%emt 00:00:50]} Re7 {[%clk 00:05:02]} {[%emt 00:00:26]} 29. c4
{[%clk 00:07:49]} {[%emt 00:04:47]} bxc4 {[%clk 00:04:38]} {[%emt 00:00:53]} 30.
bxc4 {[%clk 00:08:14]} {[%emt 00:00:06]} Rc7 {[%clk 00:04:38]} {[%emt
00:00:29]} 31. b3 {[%clk 00:08:34]} {[%emt 00:00:11]} Kg7 {[%clk 00:04:54]}
{[%emt 00:00:10]} 32. Re3 {[%clk 00:08:27]} {[%emt 00:00:40]} f4 {[%clk
00:04:51]} {[%emt 00:00:34]} 33. Re6 {[%clk 00:08:00]} {[%emt 00:00:56]} Rd7
{[%clk 00:04:48]} {[%emt 00:00:32]} 34. b4 {[%clk 00:06:27]} {[%emt 00:02:05]}
h5 {[%clk 00:05:04]} {[%emt 00:00:14]} 35. c5 {[%clk 00:02:21]} {[%emt
00:04:35]} dxc5 {[%clk 00:05:17]} {[%emt 00:00:17]} 36. Rxa6 {[%clk 00:01:28]}
{[%emt 00:01:24]} Rxd5 {[%clk 00:05:23]} {[%emt 00:00:23]} 37. b5 {[%clk
00:01:44]} {[%emt 00:00:14]} Rb8 {[%clk 00:04:40]} {[%emt 00:01:10]} 38. b6
{[%clk 00:01:54]} {[%emt 00:00:23]} Rd6 {[%clk 00:05:03]} {[%emt 00:00:06]} 39.
Ra7+ {[%clk 00:02:01]} {[%emt 00:00:24]} Kf6 {[%clk 00:05:25]} {[%emt
00:00:07]} 40. b7 {[%clk 00:01:48]} {[%emt 00:00:45]} Rb6+ {[%clk 00:05:51]}
{[%emt 00:00:03]} 41. Rb2 {[%clk 00:01:43]} {[%emt 00:00:35]} Rxb2+ {[%clk
00:06:15]} {[%emt 00:00:07]} 42. Kxb2 {[%clk 00:02:07]} {[%emt 00:00:06]} f3
{[%clk 00:06:39]} {[%emt 00:00:05]} 43. Ra1 {[%clk 00:00:40]} {[%emt 00:01:57]}
Rxb7+ {[%clk 00:07:02]} {[%emt 00:00:07]} 44. Kc3 {[%clk 00:01:05]} {[%emt
00:00:05]} g4 {[%clk 00:07:17]} {[%emt 00:00:16]} 45. Rd1 {[%clk 00:01:16]}
{[%emt 00:00:18]} h4 {[%clk 00:07:22]} {[%emt 00:00:24]} 46. Rd8 {[%clk
00:00:42]} {[%emt 00:01:06]} Rf7 {[%clk 00:07:39]} {[%emt 00:00:13]} 47. Rd6+
{[%clk 00:00:32]} {[%emt 00:00:40]} Kg7 {[%clk 00:08:07]} {[%emt 00:00:01]} 48.
Rd5 {[%clk 00:00:34]} {[%emt 00:00:28]} f2 {[%clk 00:08:28]} {[%emt 00:00:09]}
0-1

[Event "Vegagatan U1800-A"]
[Site "Goteborgs Schackcentrum, Vegatan 20, Gothenburg, Sweden"]
[Date "2025.05.03"]
[Round "3.4"]
[White "Nilsson, Christer"]
[Black "Zejak, Branislav"]
[Result "1/2-1/2"]
[TimeControl "30 minutes + 30 seconds per move from move one"]
[WhiteFideId "1777602"]
[BlackFideId "1722565"]
[WhiteElo "1710"]
[BlackElo "1768"]

1. e4 {[%clk 00:30:57]} {[%emt 00:00:02]} c6 {[%clk 00:30:55]} {[%emt
00:00:05]} 2. d4 {[%clk 00:30:04]} {[%emt 00:01:22]} d5 {[%clk 00:31:20]}
{[%emt 00:00:06]} 3. Nd2 {[%clk 00:27:17]} {[%emt 00:03:17]} dxe4 {[%clk
00:31:04]} {[%emt 00:00:46]} 4. Nxe4 {[%clk 00:27:31]} {[%emt 00:00:16]} Nf6
{[%clk 00:30:53]} {[%emt 00:00:41]} 5. Ng3 {[%clk 00:26:07]} {[%emt 00:01:54]}
e6 {[%clk 00:26:48]} {[%emt 00:04:36]} 6. Nf3 {[%clk 00:25:36]} {[%emt
00:01:00]} Be7 {[%clk 00:24:51]} {[%emt 00:02:27]} 7. Bc4 {[%clk 00:24:04]}
{[%emt 00:02:02]} b5 {[%clk 00:23:04]} {[%emt 00:02:17]} 8. Bb3 {[%clk
00:24:25]} {[%emt 00:00:09]} Bb7 {[%clk 00:22:11]} {[%emt 00:01:24]} 9. O-O
{[%clk 00:23:32]} {[%emt 00:01:22]} O-O {[%clk 00:20:17]} {[%emt 00:02:24]} 10.
c3 {[%clk 00:22:27]} {[%emt 00:01:35]} Nbd7 {[%clk 00:18:45]} {[%emt 00:02:02]}
11. Qe2 {[%clk 00:16:52]} {[%emt 00:06:04]} a6 {[%clk 00:16:16]} {[%emt
00:03:00]} 12. h3 {[%clk 00:15:37]} {[%emt 00:01:45]} c5 {[%clk 00:16:05]}
{[%emt 00:00:42]} 13. dxc5 {[%clk 00:15:16]} {[%emt 00:00:51]} Nxc5 {[%clk
00:16:00]} {[%emt 00:00:34]} 14. Bc2 {[%clk 00:15:10]} {[%emt 00:00:36]} Qc7
{[%clk 00:14:21]} {[%emt 00:02:09]} 15. Rd1 {[%clk 00:12:07]} {[%emt 00:03:33]}
Rfd8 {[%clk 00:14:32]} {[%emt 00:00:17]} 16. Bd2 {[%clk 00:07:23]} {[%emt
00:05:15]} h6 {[%clk 00:12:32]} {[%emt 00:02:31]} 17. Be1 {[%clk 00:07:30]}
{[%emt 00:00:23]} Rxd1 {[%clk 00:11:41]} {[%emt 00:01:21]} 18. Rxd1 {[%clk
00:07:38]} {[%emt 00:00:22]} Rd8 {[%clk 00:11:58]} {[%emt 00:00:12]} 19. b4
{[%clk 00:05:03]} {[%emt 00:03:06]} Rxd1 {[%clk 00:10:14]} {[%emt 00:02:15]} 20.
Bxd1 {[%clk 00:04:25]} {[%emt 00:01:08]} Nce4 {[%clk 00:09:47]} {[%emt
00:00:56]} 21. Nxe4 {[%clk 00:04:10]} {[%emt 00:00:45]} Nxe4 {[%clk 00:10:05]}
{[%emt 00:00:11]} 22. Qd3 {[%clk 00:03:06]} {[%emt 00:01:34]} Qd6 {[%clk
00:09:37]} {[%emt 00:00:59]} 23. Bc2 {[%clk 00:02:34]} {[%emt 00:01:03]} Qxd3
{[%clk 00:09:30]} {[%emt 00:00:36]} 24. Bxd3 {[%clk 00:03:02]} {[%emt
00:00:03]} Nd6 {[%clk 00:09:19]} {[%emt 00:00:40]} 25. Ne5 {[%clk 00:02:40]}
{[%emt 00:00:52]} f6 {[%clk 00:04:14]} {[%emt 00:05:36]} 26. Ng6 {[%clk
00:02:10]} {[%emt 00:00:59]} Kf7 {[%clk 00:04:28]} {[%emt 00:00:16]} 27. Nf4
{[%clk 00:02:14]} {[%emt 00:00:26]} Be4 {[%clk 00:04:14]} {[%emt 00:00:45]} 28.
f3 {[%clk 00:02:10]} {[%emt 00:00:33]} Bxd3 {[%clk 00:04:03]} {[%emt 00:00:42]}
29. Nxd3 {[%clk 00:02:37]} {[%emt 00:00:02]} Nc4 {[%clk 00:04:10]} {[%emt
00:00:23]} 30. Kf2 {[%clk 00:01:58]} {[%emt 00:01:09]} Ke8 {[%clk 00:04:15]}
{[%emt 00:00:26]} 31. Ke2 {[%clk 00:02:08]} {[%emt 00:00:19]} Kd7 {[%clk
00:04:14]} {[%emt 00:00:31]} 32. Bf2 {[%clk 00:02:23]} {[%emt 00:00:14]} a5
{[%clk 00:02:43]} {[%emt 00:02:02]} 33. Kd1 {[%clk 00:02:26]} {[%emt 00:00:27]}
axb4 {[%clk 00:02:40]} {[%emt 00:00:34]} 34. cxb4 {[%clk 00:02:36]} {[%emt
00:00:19]} e5 {[%clk 00:02:45]} {[%emt 00:00:25]} 35. Kc2 {[%clk 00:02:47]}
{[%emt 00:00:19]} Kc6 {[%clk 00:01:55]} {[%emt 00:01:21]} 36. Kc3 {[%clk
00:02:11]} {[%emt 00:01:06]} g5 {[%clk 00:01:46]} {[%emt 00:00:39]} 37. a4
{[%clk 00:02:26]} {[%emt 00:00:15]} Nb6 {[%clk 00:01:39]} {[%emt 00:00:37]} 38.
Bxb6 {[%clk 00:02:09]} {[%emt 00:00:46]} Kxb6 {[%clk 00:02:01]} {[%emt
00:00:09]} 39. a5+ {[%clk 00:02:32]} {[%emt 00:00:07]} Kc6 {[%clk 00:02:20]}
{[%emt 00:00:11]} 40. Nf2 {[%clk 00:02:49]} {[%emt 00:00:12]} h5 {[%clk
00:02:21]} {[%emt 00:00:30]} 41. g4 {[%clk 00:02:56]} {[%emt 00:00:22]} h4
{[%emt 00:00:39]} 42. Ne4 {[%emt 00:00:09]} Bd8 {[%emt 00:00:15]} 43. Nc5
{[%emt 00:00:03]} Be7 {[%emt 00:00:04]} 1/2-1/2

[Event "Vegagatan U1800-A"]
[Site "Goteborgs Schackcentrum, Vegatan 20, Gothenburg, Sweden"]
[Date "2025.05.03"]
[Round "4.1"]
[White "Norberg, Peter"]
[Black "Al Jomaa, Valid"]
[Result "1-0"]
[TimeControl "30 minutes + 30 seconds per move from move one"]
[WhiteFideId "1776185"]
[BlackFideId "1766554"]
[WhiteElo "1799"]
[BlackElo "1720"]

1. e4 {[%clk 00:30:59]} {[%emt 00:00:01]} c6 {[%clk 00:30:56]} {[%emt
00:00:05]} 2. d4 {[%clk 00:31:22]} {[%emt 00:00:06]} d5 {[%clk 00:31:20]}
{[%emt 00:00:06]} 3. e5 {[%clk 00:31:36]} {[%emt 00:00:16]} Bf5 {[%clk
00:31:45]} {[%emt 00:00:05]} 4. Nf3 {[%clk 00:31:30]} {[%emt 00:00:37]} e6
{[%clk 00:32:10]} {[%emt 00:00:05]} 5. Be2 {[%clk 00:29:16]} {[%emt 00:02:43]}
c5 {[%clk 00:32:32]} {[%emt 00:00:08]} 6. c3 {[%clk 00:28:49]} {[%emt
00:00:56]} cxd4 {[%clk 00:31:49]} {[%emt 00:01:13]} 7. cxd4 {[%clk 00:28:47]}
{[%emt 00:00:33]} Nc6 {[%clk 00:32:11]} {[%emt 00:00:09]} 8. O-O {[%clk
00:27:57]} {[%emt 00:01:19]} Nge7 {[%clk 00:32:18]} {[%emt 00:00:23]} 9. Nc3
{[%clk 00:27:19]} {[%emt 00:01:08]} Bg6 {[%clk 00:28:37]} {[%emt 00:04:11]} 10.
Bg5 {[%clk 00:24:19]} {[%emt 00:03:30]} h6 {[%clk 00:24:52]} {[%emt 00:04:14]}
11. Bh4 {[%clk 00:23:09]} {[%emt 00:01:41]} Qd7 {[%clk 00:22:25]} {[%emt
00:02:57]} 12. Qa4 {[%clk 00:18:07]} {[%emt 00:05:32]} Nf5 {[%clk 00:21:13]}
{[%emt 00:01:42]} 13. a3 {[%clk 00:16:01]} {[%emt 00:02:37]} Ncxd4 {[%clk
00:12:43]} {[%emt 00:08:59]} 14. Bb5 {[%clk 00:05:19]} {[%emt 00:11:12]} Nc6
{[%clk 00:11:56]} {[%emt 00:01:17]} 15. Ne2 {[%clk 00:03:45]} {[%emt 00:02:04]}
Nxh4 {[%clk 00:08:40]} {[%emt 00:03:46]} 16. Nxh4 {[%clk 00:03:36]} {[%emt
00:00:39]} Be7 {[%clk 00:03:12]} {[%emt 00:05:58]} 17. Nxg6 {[%clk 00:02:54]}
{[%emt 00:01:12]} fxg6 {[%clk 00:03:39]} {[%emt 00:00:03]} 18. Nd4 {[%clk
00:02:10]} {[%emt 00:01:14]} Rc8 {[%clk 00:03:28]} {[%emt 00:00:42]} 19. Rac1
{[%clk 00:02:02]} {[%emt 00:00:37]} O-O {[%clk 00:02:15]} {[%emt 00:01:44]} 20.
Bxc6 {[%clk 00:01:20]} {[%emt 00:01:11]} bxc6 {[%clk 00:02:33]} {[%emt
00:00:12]} 21. Nxc6 {[%clk 00:01:13]} {[%emt 00:00:37]} Bg5 {[%clk 00:00:49]}
{[%emt 00:02:14]} 22. Rc3 {[%clk 00:00:41]} {[%emt 00:01:02]} Qf7 {[%clk
00:00:57]} {[%emt 00:00:21]} 23. Qxa7 {[%clk 00:00:50]} {[%emt 00:00:21]} Qxa7
{[%clk 00:00:52]} {[%emt 00:00:36]} 24. Nxa7 {[%clk 00:01:19]} {[%emt
00:00:01]} Rxc3 {[%clk 00:01:07]} {[%emt 00:00:15]} 25. bxc3 {[%clk 00:01:48]}
{[%emt 00:00:02]} Ra8 {[%clk 00:00:53]} {[%emt 00:00:43]} 26. Nb5 {[%clk
00:02:02]} {[%emt 00:00:16]} 1-0

[Event "Vegagatan U1800-A"]
[Site "Goteborgs Schackcentrum, Vegatan 20, Gothenburg, Sweden"]
[Date "2025.05.03"]
[Round "4.2"]
[White "Hitcher, Oscar"]
[Black "Evertsson, David"]
[Result "0-1"]
[TimeControl "30 minutes + 30 seconds per move from move one"]
[WhiteFideId "1746901"]
[BlackFideId "1777424"]
[WhiteElo "1716"]
[BlackElo "1705"]

1. Nf3 {[%clk 00:30:56]} {[%emt 00:00:03]} Nf6 {[%clk 00:30:50]} {[%emt
00:00:10]} 2. e3 {[%clk 00:31:09]} {[%emt 00:00:17]} d5 {[%clk 00:30:26]}
{[%emt 00:00:54]} 3. c4 {[%clk 00:31:19]} {[%emt 00:00:20]} e6 {[%clk
00:26:53]} {[%emt 00:04:03]} 4. Nc3 {[%clk 00:31:10]} {[%emt 00:00:39]} c5
{[%clk 00:27:07]} {[%emt 00:00:17]} 5. cxd5 {[%clk 00:31:23]} {[%emt 00:00:16]}
exd5 {[%clk 00:27:29]} {[%emt 00:00:08]} 6. Bb5+ {[%clk 00:31:37]} {[%emt
00:00:16]} Nc6 {[%clk 00:27:28]} {[%emt 00:00:32]} 7. O-O {[%clk 00:31:03]}
{[%emt 00:01:04]} Bd6 {[%clk 00:27:34]} {[%emt 00:00:23]} 8. d4 {[%clk
00:31:07]} {[%emt 00:00:26]} O-O {[%clk 00:27:51]} {[%emt 00:00:13]} 9. Bxc6
{[%clk 00:30:59]} {[%emt 00:00:37]} bxc6 {[%clk 00:28:17]} {[%emt 00:00:06]} 10.
dxc5 {[%clk 00:31:02]} {[%emt 00:00:27]} Bxc5 {[%clk 00:28:41]} {[%emt
00:00:06]} 11. a3 {[%clk 00:29:26]} {[%emt 00:02:06]} Bg4 {[%clk 00:28:45]}
{[%emt 00:00:25]} 12. h3 {[%clk 00:29:36]} {[%emt 00:00:20]} Bh5 {[%clk
00:29:10]} {[%emt 00:00:06]} 13. b4 {[%clk 00:29:40]} {[%emt 00:00:26]} Bb6
{[%clk 00:28:47]} {[%emt 00:00:52]} 14. Na4 {[%clk 00:29:35]} {[%emt 00:00:35]}
Bc7 {[%clk 00:28:58]} {[%emt 00:00:20]} 15. Bb2 {[%clk 00:29:17]} {[%emt
00:00:47]} Qd6 {[%clk 00:29:20]} {[%emt 00:00:09]} 16. g3 {[%clk 00:26:57]}
{[%emt 00:02:48]} Ne4 {[%clk 00:29:34]} {[%emt 00:00:17]} 17. Qd4 {[%clk
00:26:08]} {[%emt 00:01:19]} f6 {[%clk 00:29:48]} {[%emt 00:00:16]} 18. g4
{[%clk 00:22:21]} {[%emt 00:04:16]} Ng5 {[%clk 00:29:34]} {[%emt 00:00:45]} 19.
Kg2 {[%clk 00:18:49]} {[%emt 00:04:02]} Nxf3 {[%clk 00:28:51]} {[%emt
00:01:14]} 20. Kxf3 {[%clk 00:18:35]} {[%emt 00:00:43]} Bg6 {[%clk 00:28:44]}
{[%emt 00:00:38]} 21. Ke2 {[%clk 00:17:18]} {[%emt 00:01:46]} Rae8 {[%clk
00:27:12]} {[%emt 00:02:02]} 22. Rac1 {[%clk 00:15:54]} {[%emt 00:01:53]} a5
{[%clk 00:24:03]} {[%emt 00:03:41]} 23. bxa5 {[%clk 00:14:41]} {[%emt
00:01:43]} Bxa5 {[%clk 00:24:26]} {[%emt 00:00:07]} 24. Qc5 {[%clk 00:13:15]}
{[%emt 00:01:55]} Qxc5 {[%clk 00:23:37]} {[%emt 00:01:19]} 25. Rxc5 {[%clk
00:13:15]} {[%emt 00:00:30]} Ra8 {[%clk 00:20:02]} {[%emt 00:04:06]} 26. Nc3
{[%clk 00:09:41]} {[%emt 00:04:03]} Rfc8 {[%clk 00:14:05]} {[%emt 00:06:27]} 27.
Na2 {[%clk 00:07:39]} {[%emt 00:02:31]} Bb6 {[%clk 00:11:31]} {[%emt 00:03:07]}
28. Rc3 {[%clk 00:06:25]} {[%emt 00:01:39]} d4 {[%clk 00:09:17]} {[%emt
00:02:48]} 29. exd4 {[%clk 00:03:44]} {[%emt 00:03:10]} Bxd4 {[%clk 00:09:38]}
{[%emt 00:00:10]} 30. Rb3 {[%clk 00:03:58]} {[%emt 00:00:15]} Bxb2 {[%clk
00:08:10]} {[%emt 00:01:58]} 31. Rxb2 {[%clk 00:04:17]} {[%emt 00:00:11]} Rxa3
{[%clk 00:08:36]} {[%emt 00:00:06]} 32. Rd2 {[%clk 00:01:59]} {[%emt 00:02:47]}
Rxh3 {[%clk 00:08:08]} {[%emt 00:00:58]} 33. Rfd1 {[%clk 00:02:00]} {[%emt
00:00:27]} Re8+ {[%clk 00:08:10]} {[%emt 00:00:29]} 34. Kf1 {[%clk 00:02:11]}
{[%emt 00:00:18]} Rh1+ {[%clk 00:08:20]} {[%emt 00:00:21]} 35. Kg2 {[%clk
00:02:27]} {[%emt 00:00:14]} Rxd1 {[%clk 00:08:46]} {[%emt 00:00:05]} 36. Rxd1
{[%clk 00:02:46]} {[%emt 00:00:10]} Re7 {[%clk 00:06:14]} {[%emt 00:03:02]} 37.
Rd8+ {[%clk 00:02:24]} {[%emt 00:00:53]} Kf7 {[%clk 00:06:37]} {[%emt
00:00:07]} 38. Rc8 {[%clk 00:02:38]} {[%emt 00:00:16]} Be4+ {[%clk 00:05:42]}
{[%emt 00:01:24]} 39. Kg3 {[%clk 00:02:07]} {[%emt 00:01:01]} Bd5 {[%clk
00:05:40]} {[%emt 00:00:33]} 40. Nb4 {[%clk 00:02:06]} {[%emt 00:00:30]} Re6
{[%clk 00:04:26]} {[%emt 00:01:45]} 41. Rc7+ {[%clk 00:01:54]} {[%emt
00:00:42]} Re7 {[%clk 00:03:59]} {[%emt 00:00:57]} 42. Rc8 {[%clk 00:01:41]}
{[%emt 00:00:42]} Re6 {[%clk 00:03:38]} {[%emt 00:00:52]} 43. Rc7+ {[%clk
00:01:56]} {[%emt 00:00:14]} Kg6 {[%clk 00:03:42]} {[%emt 00:00:25]} 44. Nd3
{[%clk 00:01:51]} {[%emt 00:00:37]} Re4 {[%clk 00:01:27]} {[%emt 00:02:45]} 45.
Nf4+ {[%clk 00:01:28]} {[%emt 00:00:52]} Kh6 {[%clk 00:01:29]} {[%emt
00:00:28]} 46. Nd3 {[%clk 00:01:17]} {[%emt 00:00:41]} Rc4 {[%clk 00:01:12]}
{[%emt 00:00:45]} 47. Nb2 {[%clk 00:01:00]} {[%emt 00:00:49]} Rd4 {[%clk
00:00:46]} {[%emt 00:00:55]} 48. Rc8 {[%clk 00:00:57]} {[%emt 00:00:34]} Rxg4+
{[%clk 00:00:57]} {[%emt 00:00:19]} 49. Kxg4 {[%clk 00:00:44]} {[%emt
00:00:43]} Be6+ {[%clk 00:01:23]} {[%emt 00:00:05]} 50. Kf4 {[%clk 00:01:06]}
{[%emt 00:00:08]} Bxc8 {[%clk 00:01:48]} {[%emt 00:00:04]} 51. Nd3 {[%clk
00:01:27]} {[%emt 00:00:09]} g5+ {[%clk 00:01:19]} {[%emt 00:01:00]} 52. Kg3
{[%clk 00:01:46]} {[%emt 00:00:10]} Kg6 {[%clk 00:01:39]} {[%emt 00:00:09]} 53.
Kf3 {[%clk 00:02:04]} {[%emt 00:00:13]} h5 {[%clk 00:02:05]} {[%emt 00:00:05]}
54. Kg3 {[%clk 00:02:28]} {[%emt 00:00:05]} h4+ {[%clk 00:02:27]} {[%emt
00:00:08]} 55. Kf3 {[%clk 00:02:48]} {[%emt 00:00:10]} Kf5 {[%clk 00:02:30]}
{[%emt 00:00:27]} 56. Kg2 {[%clk 00:02:42]} {[%emt 00:00:35]} Kg4 {[%clk
00:02:48]} {[%emt 00:00:11]} 57. f3+ {[%clk 00:02:59]} {[%emt 00:00:15]} Kf5
{[%clk 00:03:11]} {[%emt 00:00:07]} 58. Kf2 {[%clk 00:03:12]} {[%emt 00:00:17]}
Be6 {[%clk 00:03:30]} {[%emt 00:00:11]} 0-1

[Event "Vegagatan U1800-A"]
[Site "Goteborgs Schackcentrum, Vegatan 20, Gothenburg, Sweden"]
[Date "2025.05.03"]
[Round "4.3"]
[White "Nilsson, Christer"]
[Black "Gustavsson, Ville"]
[Result "1-0"]
[TimeControl "30 minutes + 30 seconds per move from move one"]
[WhiteFideId "1777602"]
[BlackFideId "1792822"]
[WhiteElo "1710"]
[BlackElo "1752"]

1. e4 {[%clk 00:30:57]} {[%emt 00:00:03]} c6 {[%clk 00:30:59]} {[%emt
00:00:02]} 2. d4 {[%clk 00:30:24]} {[%emt 00:01:02]} d5 {[%clk 00:31:23]}
{[%emt 00:00:06]} 3. exd5 {[%clk 00:30:13]} {[%emt 00:00:42]} cxd5 {[%clk
00:31:48]} {[%emt 00:00:05]} 4. c3 {[%clk 00:30:10]} {[%emt 00:00:32]} Nc6
{[%clk 00:32:01]} {[%emt 00:00:19]} 5. Nf3 {[%clk 00:30:12]} {[%emt 00:00:27]}
Nf6 {[%clk 00:32:01]} {[%emt 00:00:29]} 6. Bd3 {[%clk 00:29:18]} {[%emt
00:01:24]} Bg4 {[%clk 00:32:23]} {[%emt 00:00:09]} 7. Nbd2 {[%clk 00:29:27]}
{[%emt 00:00:21]} e6 {[%clk 00:32:09]} {[%emt 00:00:45]} 8. Qc2 {[%clk
00:29:32]} {[%emt 00:00:23]} Bd6 {[%clk 00:31:37]} {[%emt 00:01:01]} 9. h3
{[%clk 00:29:06]} {[%emt 00:00:58]} Bxf3 {[%clk 00:31:44]} {[%emt 00:00:23]} 10.
Nxf3 {[%clk 00:29:25]} {[%emt 00:00:11]} Rc8 {[%clk 00:32:02]} {[%emt
00:00:11]} 11. Qe2 {[%clk 00:27:14]} {[%emt 00:02:41]} h6 {[%clk 00:29:44]}
{[%emt 00:02:49]} 12. Ne5 {[%clk 00:25:30]} {[%emt 00:02:14]} Nd7 {[%clk
00:26:54]} {[%emt 00:03:21]} 13. Nxc6 {[%clk 00:19:08]} {[%emt 00:06:51]} Rxc6
{[%clk 00:26:18]} {[%emt 00:01:06]} 14. Bb5 {[%clk 00:14:40]} {[%emt 00:04:58]}
Rc7 {[%clk 00:26:17]} {[%emt 00:00:31]} 15. Qg4 {[%clk 00:13:21]} {[%emt
00:01:47]} Kf8 {[%clk 00:23:37]} {[%emt 00:03:11]} 16. O-O {[%clk 00:11:18]}
{[%emt 00:02:32]} a6 {[%clk 00:23:30]} {[%emt 00:00:39]} 17. Bd3 {[%clk
00:10:56]} {[%emt 00:00:51]} b5 {[%clk 00:23:15]} {[%emt 00:00:46]} 18. f4
{[%clk 00:10:21]} {[%emt 00:01:04]} Rc6 {[%clk 00:19:10]} {[%emt 00:04:36]} 19.
f5 {[%clk 00:09:49]} {[%emt 00:01:02]} Nf6 {[%clk 00:18:53]} {[%emt 00:00:48]}
20. Qf3 {[%clk 00:08:11]} {[%emt 00:02:07]} b4 {[%clk 00:18:38]} {[%emt
00:00:46]} 21. Bd2 {[%clk 00:07:58]} {[%emt 00:00:42]} bxc3 {[%clk 00:18:07]}
{[%emt 00:01:01]} 22. bxc3 {[%clk 00:07:52]} {[%emt 00:00:35]} Qb6 {[%clk
00:17:07]} {[%emt 00:01:30]} 23. fxe6 {[%clk 00:06:17]} {[%emt 00:02:06]} fxe6
{[%clk 00:17:25]} {[%emt 00:00:13]} 24. Qe2 {[%clk 00:04:49]} {[%emt 00:01:56]}
e5 {[%clk 00:17:14]} {[%emt 00:00:42]} 25. Rab1 {[%clk 00:03:16]} {[%emt
00:02:03]} Qa7 {[%clk 00:17:30]} {[%emt 00:00:13]} 26. Kh1 {[%clk 00:02:40]}
{[%emt 00:01:06]} e4 {[%clk 00:16:05]} {[%emt 00:01:56]} 27. Bc2 {[%clk
00:02:53]} {[%emt 00:00:15]} Kg8 {[%clk 00:14:44]} {[%emt 00:01:53]} 28. Bb3
{[%clk 00:02:27]} {[%emt 00:00:55]} Kh7 {[%clk 00:14:42]} {[%emt 00:00:33]} 29.
Rxf6 {[%clk 00:02:11]} {[%emt 00:00:46]} gxf6 {[%clk 00:15:10]} {[%emt
00:00:01]} 30. Bxd5 {[%clk 00:02:15]} {[%emt 00:00:27]} Rc7 {[%clk 00:15:04]}
{[%emt 00:00:37]} 31. Bxe4+ {[%clk 00:02:05]} {[%emt 00:00:39]} Kg7 {[%clk
00:15:08]} {[%emt 00:00:25]} 32. Qg4+ {[%clk 00:01:59]} {[%emt 00:00:36]} Kf8
{[%clk 00:15:24]} {[%emt 00:00:15]} 33. Rf1 {[%clk 00:01:59]} {[%emt 00:00:29]}
Rf7 {[%clk 00:15:38]} {[%emt 00:00:17]} 34. Bd5 {[%clk 00:01:33]} {[%emt
00:00:55]} Rg8 {[%clk 00:15:23]} {[%emt 00:00:46]} 35. Bxh6+ {[%clk 00:01:21]}
{[%emt 00:00:43]} 1-0